[Event "98th Caplin Hastings Masters 2024-25"]
[Site "Hastings"]
[Date "2025.01.01"]
[Round "7.40"]
[White "Vaidyanathan, Sathya"]
[Black "Dette, Jan"]
[Result "0-1"]
[ECO "B13"]
[WhiteElo "1908"]
[BlackElo "2102"]
[Annotator "NA RC"]
[PlyCount "78"]
[EventDate "2024.12.23"]
[EventType "swiss"]
[EventCountry "ENG"]
[SourceTitle "playchess.com"]
[Source "ChessBase"]
[SourceQuality "1"]
[TimeControl "5400+30"]

1. e4 {[%emt 0:00:02]} c6 {[%emt 0:00:09]} 2. d4 {[%emt 0:00:06]} d5 {[%emt 0:00:03]} 3. exd5 {[%emt 0:00:04]} cxd5 {[%emt 0:00:04]} 4. Bd3 {[%emt 0:00:04]} Nf6 {[%emt 0:00:07]} 5. c3 {[%emt 0:00:07]} Bg4 {[%emt 0:00:05]} 6. Qb3 {[%emt 0:00:06]} Qc7 {[%emt 0:00:19]} 7. h3 {[%emt 0:00:13]} Bd7 {[%emt 0:00:08]} 8. Ne2 {[%emt 0:13:02]} Nc6 {[%emt 0:16:49]} 9. Bf4 {[%emt 0:03:44]} e5 {[%emt 0:00:35]} 10. dxe5 {[%emt 0:02:50]} Nxe5 {[%emt 0:00:07]} 11. Bxe5 {[%emt 0:14:44]} Qxe5 {[%emt 0:00:37]} 12. Qxb7 {[%emt 0:18:20]} Rb8 {[%emt 0:01:39]} 13. Qxa7 {[%emt 0:01:15]} Rxb2 {[%emt 0:00:20]} 14. Qd4 {[%emt 0:10:09]} Qg5 {[%emt 0:17:16]} 15. Qe3+ {[%emt 0:12:50]} Qxe3 {[%emt 0:00:17]} 16. fxe3 {[%emt 0:00:01]} Bc5 {[%emt 0:02:26]} 17. O-O {[%emt 0:04:49]} Bxe3+ {[%emt 0:00:09]} 18. Kh1 {[%emt 0:00:26]} O-O {[%emt 0:06:21]} 19. a4 {[%emt 0:02:50]} Ne4 {[%emt 0:01:22]} 20. Bxe4 {[%emt 0:04:03]} dxe4 {[%emt 0:00:07]} 21. Nd4 {[%emt 0:00:43]} f5 {[%emt 0:13:32]} 22. Na3 {[%emt 0:02:16]} Bxd4 {[%emt 0:03:04]} 23. cxd4 {[%emt 0:01:04]} Bxa4 {[%emt 0:00:08]} 24. Nc4 {[%emt 0:01:10]} Rb4 {[%emt 0:00:11]} 25. Nd6 {[%emt 0:00:16]} g6 {[%emt 0:01:01]} 26. d5 {[%emt 0:03:47]} Rd4 {[%emt 0:15:42]} 27. Nb7 {[%emt 0:00:47]} Bb5 {[%emt 0:04:16]} 28. Rfd1 {[%emt 0:01:13]} Bd3 {[%emt 0:02:07]} 29. d6 {[%emt 0:00:12]} Rb8 {[%emt 0:00:51]} 30. Ra7 {[%emt 0:01:31]} e3 {[%emt 0:00:38]} 31. Nc5 {[%emt 0:00:58]} e2 {[%emt 0:01:12]} 32. Re1 {[%emt 0:01:20]} Rb1 {[%emt 0:05:51]} 33. Ra1 {[%emt 0:01:16]} Rxa1 {[%emt 0:00:24]} 34. Rxa1 {[%emt 0:00:05]} Rxd6 {[%emt 0:00:08]} 35. Kh2 {[%emt 0:00:57]} Bc4 {[%emt 0:00:43]} 36. Ra8+ {[%emt 0:00:36]} Kf7 {[%emt 0:00:40]} 37. Ra7+ {[%emt 0:00:21]} Kf6 {[%emt 0:00:12]} 38. g4 {[%emt 0:00:42]} e1=Q {[%emt 0:00:28]} 39. g5+ {[%emt 0:00:29]} Kxg5 {[%emt 0:00:41]} 0-1

[Event "98th Caplin Hastings Masters 2024-25"]
[Site "Hastings"]
[Date "2025.01.01"]
[Round "7.41"]
[White "Zhou, Yang-Fan"]
[Black "Briem, Benedikt"]
[Result "1-0"]
[ECO "C54"]
[WhiteElo "2424"]
[BlackElo "2132"]
[Annotator "TA"]
[PlyCount "51"]
[EventDate "2024.12.23"]
[EventType "swiss"]
[EventCountry "ENG"]
[SourceTitle "playchess.com"]
[Source "ChessBase"]
[SourceQuality "1"]
[TimeControl "5400+30"]

{[%evp 13,51,52,60,16,55,47,47,37,47,47,45,41,34,38,34,31,66,0,62,27,81,81,79,90,93,85,85,90,75,76,139,70,194,197,296,211,407,407,409,404]} 1. e4 {[%emt 1:31:00]} e5 {[%emt 0:04:53]} 2. Nf3 {[%emt 0:00:00]} Nc6 {[%emt 0:00:07]} 3. Bc4 {[%emt 0:00:00]} Bc5 {[%emt 0:00:06]} 4. d3 {[%emt 0:00:00]} Nf6 {[%emt 0:00:15][%cal Bg8f6,Bf6d5,Bd5b6,Bb6c4][%mdl 32]} 5. c3 {[%emt 0:00:00]} O-O {[%emt 0:00:22]} 6. O-O {[%emt 0:00:00]} d5 {[%emt 0:00:19]} 7. exd5 {[%emt 0:00:00]} Nxd5 {[%emt 0:00:11]} 8. a4 {[%emt 0:00:00]} Bg4 {[%emt 0:04:16]} 9. a5 {[%emt 0:00:00]} a6 {[%emt 0:00:18]} 10. Nbd2 {[%emt 0:00:00] White is slightly better.} b5 {[%emt 0:06:59]} 11. axb6 {[%emt 0:00:00]} Nxb6 {[%emt 0:00:38]} 12. Rxa6 {[%emt 0:00:00]} (12. Bxa6 Nb8 13. b4 Be7 $11) (12. Ne4 {is interesting.} Nxc4 13. Nxc5 Nb6 14. h3) 12... Nxc4 {[%emt 0:03:04]} 13. Rxa8 {[%emt 0:00:00]} Qxa8 {[%emt 0:00:24]} 14. Nxc4 {[%emt 0:00:00][%cal Oh2h3]} Rd8 {[%emt 0:19:06]} 15. Qe2 {[%emt 0:00:00]} (15. Ncxe5 $2 {too greedy.} Nxe5 16. Nxe5 Bxd1 $19) (15. h3 $14 Bh5 16. b4 (16. Ncxe5 $2 {loses.} Nxe5 17. Bg5 Bxf3 $19)) 15... Bf5 {[%emt 0:05:56]} (15... f6 $11) 16. Rd1 {[%emt 0:00:00][%cal Ob2b4]} (16. Ncxe5 {keeps more tension.} Nxe5 17. Nxe5 f6 18. g4) 16... e4 {[%emt 0:03:08]} 17. dxe4 $16 {[%emt 0:00:00]} Rxd1+ {[%emt 0:00:54]} 18. Qxd1 {[%emt 0:00:00]} Bxe4 {[%emt 0:00:09]} 19. b4 $36 {[%emt 0:00:00][%mdl 2048] Black is under strong pressure.} Bf8 {[%emt 0:09:31]} 20. Bf4 {[%emt 0:00:00]} Ne7 {[%emt 0:02:14]} 21. Ne3 {[%emt 0:00:00] White is more active. A dynamic duo of knights.} (21. Bxc7 $2 {perishes.} Bxf3 22. gxf3 Qc6 $19) 21... Ng6 {[%emt 0:07:06]} (21... Qa3 $142) 22. Bg3 {[%emt 0:00:00]} (22. Bxc7 $16 {Hoping for Ne5.} Qc6 23. Ng5 Qxc3 24. Nxe4 Qxc7 25. b5) 22... Qc6 {[%emt 0:10:06] Black cannot hold the game after this.} (22... Qa3 $14) 23. Ng5 $18 {[%emt 0:00:00]} h6 {[%emt 0:02:31] [#]} (23... Bxg2 {was worth a try.} 24. Nxg2 Qxc3) 24. b5 $1 {[%emt 0:00:00][%mdl 512]} Qxb5 {[%emt 0:02:04]} (24... Qa8) (24... Qe8 25. Nxe4) 25. Nxe4 {[%emt 0:00:00]} f5 {[%emt 0:00:36]} 26. Qh5 {[%emt 0:00:00] Weighted Error Value: White=0.23 (precise) /Black=0.45.  Mistake:       	White=2     	Black=6      Inaccurate:     	White=1     	Black=2      OK:         	White=5     	Black=6      Best:        	White=4     	Black=1} 1-0

[Event "98th Caplin Hastings Masters 2024-25"]
[Site "Hastings"]
[Date "2025.01.01"]
[Round "7.42"]
[White "Muir, Andrew J"]
[Black "Flynn, David"]
[Result "1-0"]
[ECO "A58"]
[WhiteElo "2214"]
[BlackElo "1834"]
[Annotator "TA"]
[PlyCount "71"]
[EventDate "2024.12.23"]
[EventType "swiss"]
[EventCountry "ENG"]
[SourceTitle "playchess.com"]
[Source "ChessBase"]
[SourceQuality "1"]
[TimeControl "5400+30"]

{[%evp 9,70,17,39,35,33,33,16,45,202,166,246,232,230,238,212,176,194,172,303,295,341,348,333,317,289,287,260,118,147,126,137,93,126,58,36,-12,21,20,27,52,50,25,36,15,69,0,454,0,20,0,8,0,131,120,753,753,869,830,29977,29978,29998,29999,29999]} 1. d4 {[%emt 0:00:03]} Nf6 {[%emt 0:01:04]} 2. c4 {[%emt 0:00:09]} c5 {[%emt 0:00:03]} 3. d5 {[%emt 0:00:07]} b5 {[%emt 0:00:05]} 4. cxb5 {[%emt 0:00:05]} a6 {[%emt 0:00:05]} 5. bxa6 {[%emt 0:00:06]} e6 {[%emt 0:00:11]} 6. Nc3 {[%emt 0:00:25]} exd5 {[%emt 0:00:11]} 7. Nxd5 {[%emt 0:00:47][%cal Oe2e4]} Be7 {[%emt 0:00:05][%cal Bf8e7,Be7g5,Bg5h6][%mdl 32]} 8. e4 {[%emt 0:01:02]} Nxe4 $2 {[%emt 0:22:51]} (8... O-O $14) 9. Qf3 $1 $18 {[%emt 0:13:38] Active counter play!} Ng5 {[%emt 0:16:21]} (9... f5 $142) 10. Bxg5 $1 {[%emt 0:11:05]} (10. Nf6+ $6 Bxf6 11. Qxa8 Nxa6) 10... Bxg5 {[%emt 0:00:09]} 11. Qe4+ $1 {[%emt 0:00:36]} Kf8 {[%emt 0:05:40]} 12. f4 {[%emt 0:09:10]} Bh6 {[%emt 0:03:37]} 13. Nf3 {[%emt 0:04:14]} Nc6 {[%emt 0:03:18]} (13... d6 {keeps fighting.} 14. Bc4 Bxa6) 14. Bc4 {[%emt 0:01:56]} Bxa6 {[%emt 0:06:44]} 15. O-O {[%emt 0:02:17]} Bxc4 {[%emt 0:01:13]} 16. Qxc4 {[%emt 0:00:07]} d6 {[%emt 0:00:39] Prevents Ne5} 17. Rad1 {[%emt 0:03:41]} g6 {[%emt 0:02:00]} 18. Qb5 {[%emt 0:01:50]} (18. f5 $18 {and White stays clearly on top.}) 18... Ne7 {[%emt 0:01:26]} 19. Nb6 {[%emt 0:13:19] A dynamic duo of knights.} Ra7 {[%emt 0:03:52][%cal Oa7b7]} 20. Ne5 $40 {[%emt 0:00:53][%mdl 128] White is out for blood.} (20. Qxc5 dxc5 21. Rxd8+ Kg7 22. Rxh8 Kxh8 $14) 20... Kg7 {[%emt 0:04:28][%cal Oa7b7]} 21. Qb3 {[%emt 0:11:14]} ({Better is} 21. Nbc4 $16 d5 (21... Nf5 22. Nc6 $16) 22. Qxc5) 21... Rf8 $14 {[%emt 0:00:15]} 22. g4 {[%emt 0:00:54]} (22. Ng4 $14 {was preferable.}) 22... f6 {[%emt 0:05:50]} 23. Nec4 $1 {[%emt 0:03:08]} Nc8 {[%emt 0:04:10]} 24. Nxc8 {[%emt 0:03:17]} (24. g5 fxg5 25. f5 Nxb6 26. Rxd6 Qc7 27. Rxb6 g4 28. f6+) 24... Qxc8 {[%emt 0:00:04]} 25. Qg3 {[%emt 0:00:24]} (25. Rxd6 Qxg4+ 26. Qg3 Qe2 $15) (25. Qh3 d5 26. Nb6 Qb7 27. Nxd5 Qxb2 28. a4) 25... Kg8 {[%emt 0:01:55]} 26. Rxd6 {[%emt 0:00:55]} Rxa2 {[%emt 0:01:46]} ({Black should play} 26... Ra4 $11 27. g5 fxg5) 27. Rfd1 {[%emt 0:05:01]} (27. Qb3 $14 Ra8 (27... Qxg4+ $2 28. Kh1 $18) 28. f5) 27... Re8 $2 {[%emt 0:02:39][%mdl 8192] [#]} (27... Qe8 $11 {and Black has nothing to worry.}) 28. h3 $2 {[%emt 0:00:39]} (28. Rxf6 Qa8 $11) (28. Nb6 $1 $18 {[%cal Rb6c8]} Qb8 29. Qb3+ (29. Rxf6 Rxb2 30. Nc4 Rb1 $17) 29... Kh8 30. Qxa2 Bxf4 31. Qf7 (31. Rxf6 Qe5 $18) 31... Bxd6 32. Qxf6+ Kg8 33. Rxd6 (33. Qxd6 Qxd6 34. Rxd6 Re4 $18)) 28... Qb7 {[%emt 0:01:29]} 29. Rxf6 {[%emt 0:04:12]} Qe7 {[%emt 0:00:20]} 30. Rfd6 {[%emt 0:01:10]} (30. g5 {is interesting.} Qe2 31. Qb3 Bg7 32. Ne5+) 30... Qe4 {[%emt 0:04:25]} (30... Qe2 $11 31. Qd3 Bxf4 32. Rxg6+ hxg6 33. Qxg6+ Kh8 34. Qf6+ Kg8 35. Qg6+) 31. Qb3 $16 {[%emt 0:03:21]} Qxf4 $2 {[%emt 0:01:08][%mdl 8192] [#]} 32. Rf1 $1 $18 {[%emt 0:01:16][%cal Of1f4]} ({Inferior is} 32. Qxa2 Qg3+ 33. Kh1 Qxh3+ 34. Kg1 Qxg4+ 35. Kh1 Qh3+ 36. Kg1 Qg4+ 37. Kh1 Qh3+ 38. Kg1 Qg4+ $11) 32... Ra1 {[%emt 0:03:37]} 33. Rxa1 {[%emt 0:00:56][%cal Bf1a1,Ba1a8,Ba8g8][%mdl 32] Threatens to win with Rf1.} Re2 {[%emt 0:01:06]} 34. Ne5+ {[%emt 0:01:34]} Kf8 {[%emt 0:01:38]} 35. Ra8+ {[%emt 0:00:35]} Kg7 {[%emt 0:00:39]} 36. Rg8# {[%emt 0:00:06]} 1-0

[Event "98th Caplin Hastings Masters 2024-25"]
[Site "Hastings"]
[Date "2025.01.01"]
[Round "7.43"]
[White "Rubeck, Jonathan"]
[Black "Gorainow, Nikita"]
[Result "1/2-1/2"]
[ECO "B22"]
[WhiteElo "1824"]
[BlackElo "2045"]
[Annotator "NA RC"]
[PlyCount "88"]
[EventDate "2024.12.23"]
[EventType "swiss"]
[EventCountry "ENG"]
[SourceTitle "playchess.com"]
[Source "ChessBase"]
[SourceQuality "1"]
[TimeControl "5400+30"]

1. e4 {[%emt 0:00:02]} c5 {[%emt 0:00:05]} 2. c3 {[%emt 0:00:04]} Nf6 {[%emt 0:00:05]} 3. e5 {[%emt 0:00:04]} Nd5 {[%emt 0:00:05]} 4. d4 {[%emt 0:00:04]} cxd4 {[%emt 0:00:10]} 5. cxd4 {[%emt 0:00:18]} d6 {[%emt 0:00:35]} 6. Nf3 {[%emt 0:02:03]} e6 {[%emt 0:00:21]} 7. Bc4 {[%emt 0:00:08]} Nc6 {[%emt 0:00:39]} 8. O-O {[%emt 0:00:09]} Be7 {[%emt 0:00:06]} 9. Re1 {[%emt 0:00:26]} O-O {[%emt 0:00:19]} 10. Bd2 {[%emt 0:04:33]} Qc7 {[%emt 0:12:53]} 11. Qe2 {[%emt 0:02:29]} dxe5 {[%emt 0:09:47]} 12. dxe5 {[%emt 0:00:43]} Rd8 {[%emt 0:15:16]} 13. Na3 {[%emt 0:01:32]} a6 {[%emt 0:09:10]} 14. Rac1 {[%emt 0:00:39]} b5 {[%emt 0:03:07]} 15. Bd3 {[%emt 0:01:24]} Bb7 {[%emt 0:02:56]} 16. Bb1 {[%emt 0:04:17]} Rac8 {[%emt 0:05:02]} 17. Nc2 {[%emt 0:02:09]} Qb6 {[%emt 0:01:12]} 18. Ne3 {[%emt 0:01:23]} Nf4 {[%emt 0:01:42]} 19. Qf1 {[%emt 0:00:14]} Nxe5 {[%emt 0:05:55]} 20. Rxc8 {[%emt 0:01:51]} Nxf3+ {[%emt 0:04:36]} 21. gxf3 {[%emt 0:00:12]} Rxc8 {[%emt 0:00:06]} 22. Nf5 {[%emt 0:03:37]} exf5 {[%emt 0:04:25]} 23. Bxf4 {[%emt 0:00:27]} Qg6+ {[%emt 0:03:45]} 24. Bg3 {[%emt 0:00:13]} Bb4 {[%emt 0:03:31]} 25. Re5 {[%emt 0:01:15]} Qh6 {[%emt 0:04:07]} 26. f4 {[%emt 0:05:34]} Qc6 {[%emt 0:00:21]} 27. f3 {[%emt 0:01:09]} g6 {[%emt 0:02:35]} 28. Kg2 {[%emt 0:02:12]} Bd6 {[%emt 0:00:47]} 29. Re1 {[%emt 0:03:15]} Bb4 {[%emt 0:02:10]} 30. Rd1 {[%emt 0:01:03]} Re8 {[%emt 0:01:18]} 31. a3 {[%emt 0:02:42]} Bc5 {[%emt 0:02:22]} 32. Ba2 {[%emt 0:02:00]} Qf6 {[%emt 0:00:51]} 33. Rd2 {[%emt 0:01:58]} Re3 {[%emt 0:00:30]} 34. Qc1 {[%emt 0:04:12]} Bxf3+ {[%emt 0:03:21]} 35. Kf1 {[%emt 0:04:10]} Bf8 {[%emt 0:01:48]} 36. Bf2 {[%emt 0:03:59]} Re7 {[%emt 0:00:31]} 37. Qc8 {[%emt 0:04:13]} Qc6 {[%emt 0:00:22]} 38. Rd8 {[%emt 0:07:42]} Qxc8 {[%emt 0:00:35]} 39. Rxc8 {[%emt 0:00:05]} Bb7 {[%emt 0:00:21]} 40. Rb8 {[%emt 0:01:01]} Rc7 {[%emt 0:01:08]} 41. Bb6 {[%emt 0:07:43]} Rc1+ {[%emt 0:00:12]} 42. Kf2 {[%emt 0:02:05]} Bc8 {[%emt 0:00:07]} 43. Bd4 {[%emt 0:02:33]} Bd6 {[%emt 0:00:48]} 44. Ra8 {[%emt 0:00:48]} Rc7 {[%emt 0:00:41]} 1/2-1/2

[Event "98th Caplin Hastings Masters 2024-25"]
[Site "Hastings"]
[Date "2025.01.01"]
[Round "7.44"]
[White "Norinkeviciute, Rasa"]
[Black "Lee, Jungsoo"]
[Result "0-1"]
[ECO "A26"]
[WhiteElo "1952"]
[BlackElo "1705"]
[Annotator "NA RC"]
[PlyCount "66"]
[EventDate "2024.12.23"]
[EventType "swiss"]
[EventCountry "ENG"]
[SourceTitle "playchess.com"]
[Source "ChessBase"]
[SourceQuality "1"]
[TimeControl "5400+30"]

1. c4 {[%emt 0:00:07]} Nf6 {[%emt 0:00:10]} 2. g3 {[%emt 0:00:09]} g6 {[%emt 0:00:09]} 3. Bg2 {[%emt 0:00:05]} Bg7 {[%emt 0:00:06]} 4. Nc3 {[%emt 0:00:50]} O-O {[%emt 0:00:09]} 5. d3 {[%emt 0:02:38]} d6 {[%emt 0:00:28]} 6. e4 {[%emt 0:00:19]} e5 {[%emt 0:00:15]} 7. Nge2 {[%emt 0:00:12]} Nc6 {[%emt 0:00:45]} 8. h3 {[%emt 0:01:16]} Nd4 {[%emt 0:09:39]} 9. O-O {[%emt 0:01:13]} c5 {[%emt 0:01:13]} 10. a3 {[%emt 0:00:35]} a5 {[%emt 0:04:02]} 11. Rb1 {[%emt 0:00:23]} Ne8 {[%emt 0:01:51]} 12. f4 {[%emt 0:02:05]} f5 {[%emt 0:00:26]} 13. Nd5 {[%emt 0:03:22]} Nf6 {[%emt 0:03:51]} 14. exf5 {[%emt 0:03:01]} Nxf5 {[%emt 0:09:16]} 15. Kh2 {[%emt 0:01:45]} Nxd5 {[%emt 0:03:16]} 16. Bxd5+ {[%emt 0:04:25]} Kh8 {[%emt 0:00:05]} 17. Nc3 {[%emt 0:05:51]} Ne7 {[%emt 0:02:44]} 18. Bg2 {[%emt 0:01:05]} Be6 {[%emt 0:00:47]} 19. Ne4 {[%emt 0:04:09]} Qd7 {[%emt 0:02:27]} 20. Bd2 {[%emt 0:02:14]} Nc6 {[%emt 0:02:40]} 21. Nc3 {[%emt 0:04:12]} Ne7 {[%emt 0:08:28]} 22. Qb3 {[%emt 0:06:48]} Rab8 {[%emt 0:06:09]} 23. Qb6 {[%emt 0:08:14]} Nc6 {[%emt 0:01:37]} 24. Nd5 {[%emt 0:03:19]} Bf5 {[%emt 0:01:17]} 25. Be4 {[%emt 0:08:42]} Bxh3 {[%emt 0:00:59]} 26. Rh1 {[%emt 0:00:48]} Qg4 {[%emt 0:00:43]} 27. Rbe1 {[%emt 0:02:40]} exf4 {[%emt 0:01:42]} 28. Nxf4 {[%emt 0:02:33]} Be5 {[%emt 0:03:08]} 29. Rhg1 {[%emt 0:14:49]} Rxf4 {[%emt 0:03:21]} 30. gxf4 {[%emt 0:03:09]} Qh4 {[%emt 0:00:23]} 31. Rh1 {[%emt 0:06:17]} Rf8 {[%emt 0:03:51]} 32. Bxc6 {[%emt 0:03:30]} Rxf4 {[%emt 0:14:07]} 33. Rxe5 {[%emt 0:02:48]} Rf2+ {[%emt 0:00:34]} 0-1

[Event "98th Caplin Hastings Masters 2024-25"]
[Site "Hastings"]
[Date "2025.01.01"]
[Round "7.45"]
[White "Wilson, Matthew R"]
[Black "Graham, Oliver"]
[Result "1-0"]
[ECO "A01"]
[WhiteElo "1766"]
[BlackElo "1789"]
[Annotator "NA RC"]
[PlyCount "97"]
[EventDate "2024.12.23"]
[EventType "swiss"]
[EventCountry "ENG"]
[SourceTitle "playchess.com"]
[Source "ChessBase"]
[SourceQuality "1"]
[TimeControl "5400+30"]

1. b3 {[%emt 0:00:09]} d5 {[%emt 0:00:21]} 2. Bb2 {[%emt 0:00:06]} Nc6 {[%emt 0:00:15]} 3. e3 {[%emt 0:00:07]} e5 {[%emt 0:00:07]} 4. Bb5 {[%emt 0:00:05]} Bd6 {[%emt 0:00:26]} 5. f4 {[%emt 0:02:08]} Qh4+ {[%emt 0:03:02]} 6. g3 {[%emt 0:02:07]} Qe7 {[%emt 0:00:02]} 7. fxe5 {[%emt 0:05:22]} Bxe5 {[%emt 0:01:06]} 8. Bxc6+ {[%emt 0:00:54]} bxc6 {[%emt 0:00:16]} 9. Bxe5 {[%emt 0:00:13]} Qxe5 {[%emt 0:00:10]} 10. Nc3 {[%emt 0:00:11]} Ba6 {[%emt 0:01:04]} 11. Qg4 {[%emt 0:05:00]} Nh6 {[%emt 0:01:22]} 12. Qf4 {[%emt 0:03:17]} Qe7 {[%emt 0:00:47]} 13. Qa4 {[%emt 0:05:28]} Bb7 {[%emt 0:00:40]} 14. Nxd5 {[%emt 0:03:05]} Qe5 {[%emt 0:02:04]} 15. Nc3 {[%emt 0:02:00]} O-O {[%emt 0:00:56]} 16. Nge2 {[%emt 0:24:53]} Qf5 {[%emt 0:03:42]} 17. O-O-O {[%emt 0:04:50]} a5 {[%emt 0:00:44]} 18. Rhf1 {[%emt 0:02:53]} Qe5 {[%emt 0:01:45]} 19. Qf4 {[%emt 0:01:20]} Qe7 {[%emt 0:01:06]} 20. Kb1 {[%emt 0:05:04]} f6 {[%emt 0:03:35]} 21. Na4 {[%emt 0:04:26]} Nf7 {[%emt 0:00:53]} 22. Nd4 {[%emt 0:02:01]} Ne5 {[%emt 0:02:09]} 23. Nf5 {[%emt 0:01:33]} Qd8 {[%emt 0:02:21]} 24. Nc5 {[%emt 0:02:57]} Bc8 {[%emt 0:00:25]} 25. d4 {[%emt 0:01:21]} Ng6 {[%emt 0:03:27]} 26. Qf3 {[%emt 0:02:20]} Bxf5 {[%emt 0:05:27]} 27. Qxf5 {[%emt 0:00:04]} Re8 {[%emt 0:00:27]} 28. e4 {[%emt 0:01:19]} Re7 {[%emt 0:04:12]} 29. h4 {[%emt 0:00:27]} Rb8 {[%emt 0:01:38]} 30. h5 {[%emt 0:00:45]} Nf8 {[%emt 0:00:32]} 31. h6 {[%emt 0:01:39]} Qd6 {[%emt 0:06:33]} 32. hxg7 {[%emt 0:03:57]} Kxg7 {[%emt 0:03:15]} 33. g4 {[%emt 0:04:14]} Ng6 {[%emt 0:01:57]} 34. g5 {[%emt 0:00:36]} fxg5 {[%emt 0:01:20]} 35. Qxg5 {[%emt 0:01:27]} Rbe8 {[%emt 0:04:15]} 36. e5 {[%emt 0:02:09]} Qd5 {[%emt 0:03:06]} 37. c4 {[%emt 0:02:37]} Qd8 {[%emt 0:01:34]} 38. Qf6+ {[%emt 0:02:52]} Kg8 {[%emt 0:01:32]} 39. Qxc6 {[%emt 0:00:29]} Kh8 {[%emt 0:01:33]} 40. Qf6+ {[%emt 0:00:33]} Kg8 {[%emt 0:00:17]} 41. Ne4 {[%emt 0:00:48]} Rf8 {[%emt 0:00:56]} 42. Qg5 {[%emt 0:01:17]} Rxf1 {[%emt 0:00:44]} 43. Rxf1 {[%emt 0:00:01]} Qxd4 {[%emt 0:00:24]} 44. Nf6+ {[%emt 0:00:21]} Kh8 {[%emt 0:01:42]} 45. Qf5 {[%emt 0:00:50]} Rxe5 {[%emt 0:02:47]} 46. Qc8+ {[%emt 0:00:21]} Kg7 {[%emt 0:00:36]} 47. Qg8+ {[%emt 0:01:23]} Kh6 {[%emt 0:01:18]} 48. Qxh7+ {[%emt 0:00:09]} Kg5 {[%emt 0:00:19]} 49. Qh5# {[%emt 0:00:12]} 1-0

[Event "98th Caplin Hastings Masters 2024-25"]
[Site "Hastings"]
[Date "2025.01.01"]
[Round "7.46"]
[White "Miller, Daniel"]
[Black "Vaidyanathan, Adithya"]
[Result "0-1"]
[ECO "A04"]
[WhiteElo "2093"]
[BlackElo "1904"]
[Annotator "NA RC"]
[PlyCount "94"]
[EventDate "2024.12.23"]
[EventType "swiss"]
[EventCountry "ENG"]
[SourceTitle "playchess.com"]
[Source "ChessBase"]
[SourceQuality "1"]
[TimeControl "5400+30"]

1. g3 {[%emt 0:00:01]} c5 {[%emt 0:00:05]} 2. Bg2 {[%emt 0:00:20]} g6 {[%emt 0:00:06]} 3. c3 {[%emt 0:03:10]} Bg7 {[%emt 0:01:00]} 4. Nf3 {[%emt 0:00:42]} Nc6 {[%emt 0:00:09]} 5. O-O {[%emt 0:00:19]} e5 {[%emt 0:00:58]} 6. e4 {[%emt 0:00:09]} Nge7 {[%emt 0:00:22]} 7. h4 {[%emt 0:00:17]} d6 {[%emt 0:01:41]} 8. d3 {[%emt 0:01:53]} h6 {[%emt 0:01:24]} 9. Be3 {[%emt 0:01:08]} Qb6 {[%emt 0:00:38]} 10. Na3 {[%emt 0:03:04]} Be6 {[%emt 0:01:23]} 11. Qc1 {[%emt 0:07:46]} f5 {[%emt 0:02:52]} 12. b4 {[%emt 0:02:59]} fxe4 {[%emt 0:07:04]} 13. bxc5 {[%emt 0:01:24]} dxc5 {[%emt 0:00:16]} 14. Rb1 {[%emt 0:01:23]} exf3 {[%emt 0:02:11]} 15. Bxf3 {[%emt 0:03:50]} Qc7 {[%emt 0:01:38]} 16. Nb5 {[%emt 0:00:44]} Qd7 {[%emt 0:00:14]} 17. Bxc5 {[%emt 0:01:16]} O-O {[%emt 0:00:27]} 18. Be4 {[%emt 0:02:26]} Rad8 {[%emt 0:04:48]} 19. Nxa7 {[%emt 0:03:12]} Rf6 {[%emt 0:09:56]} 20. c4 {[%emt 0:02:38]} Bf5 {[%emt 0:04:55]} 21. Qa3 {[%emt 0:23:53]} Bxe4 {[%emt 0:06:58]} 22. dxe4 {[%emt 0:00:10]} Nc8 {[%emt 0:01:17]} 23. Nb5 {[%emt 0:01:50]} b6 {[%emt 0:00:56]} 24. Be3 {[%emt 0:00:51]} Nd4 {[%emt 0:02:08]} 25. Rfd1 {[%emt 0:05:23]} Rc6 {[%emt 0:01:33]} 26. Kg2 {[%emt 0:04:20]} Qg4 {[%emt 0:02:07]} 27. Bxd4 {[%emt 0:06:19]} Qxe4+ {[%emt 0:02:06]} 28. f3 {[%emt 0:02:48]} Qe2+ {[%emt 0:00:08]} 29. Kh3 {[%emt 0:00:21]} exd4 {[%emt 0:00:21]} 30. Rbc1 {[%emt 0:10:46]} Qe7 {[%emt 0:04:21]} 31. Qa8 {[%emt 0:01:49]} Qd7+ {[%emt 0:00:38]} 32. Kg2 {[%emt 0:00:19]} Nd6 {[%emt 0:00:14]} 33. Qa4 {[%emt 0:01:54]} Nxb5 {[%emt 0:00:41]} 34. Qxb5 {[%emt 0:01:23]} Re6 {[%emt 0:00:46]} 35. Qxd7 {[%emt 0:03:04]} Rxd7 {[%emt 0:00:11]} 36. Rd3 {[%emt 0:00:24]} Re2+ {[%emt 0:00:37]} 37. Kf1 {[%emt 0:00:04]} Rxa2 {[%emt 0:00:39]} 38. c5 {[%emt 0:00:04]} bxc5 {[%emt 0:00:56]} 39. Rxc5 {[%emt 0:00:10]} Rb7 {[%emt 0:00:15]} 40. Rc1 {[%emt 0:00:49]} Rbb2 {[%emt 0:01:56]} 41. g4 {[%emt 0:01:18]} Rf2+ {[%emt 0:00:30]} 42. Kg1 {[%emt 0:00:10]} Rg2+ {[%emt 0:00:21]} 43. Kf1 {[%emt 0:00:15]} Rh2 {[%emt 0:00:28]} 44. Kg1 {[%emt 0:00:21]} Rxh4 {[%emt 0:00:07]} 45. Rb3 {[%emt 0:00:15]} Rhh2 {[%emt 0:00:24]} 46. Rc7 {[%emt 0:00:54]} Rhc2 {[%emt 0:00:28]} 47. Rb8+ {[%emt 0:01:01]} Kh7 {[%emt 0:00:07]} 0-1